fUSD/lending_fUSD_20250308
["ID","MTS","AMOUNT","RATE_DAILY","PERIOD"]
[355631443,1741414261832,-500.0,8.493e-05,2]
[355631444,1741414261842,-516.6,8.493e-05,2]
[355631445,1741414261851,-1072.14,8.493e-05,2]
[355631446,1741414261860,-965.04,8.493e-05,2]
[355631447,1741414261869,-4647.48,8.493e-05,2]
[355631448,1741414261878,-500.0,8.493e-05,2]
[355631449,1741414261887,-6748.55,8.493e-05,2]
[355631450,1741414261900,-4436.69,8.493e-05,2]
[355631451,1741414261918,-554.33,8.493e-05,2]
[355631452,1741414261934,-587.70568763,8.493e-05,2]
[355631453,1741414261952,-2204.54,8.493e-05,2]
[355631454,1741414261969,-511.50500536,8.493e-05,2]
[355631455,1741414261984,-1446.39,8.493e-05,2]
[355631456,1741414262000,-2448.92,8.493e-05,2]
[355631457,1741414262018,-1092.84,8.493e-05,2]
[355631458,1741414262036,-916.43,8.493e-05,2]
[355631459,1741414262054,-9338.59,8.493e-05,2]
[355631460,1741414262071,-4384.43,8.493e-05,2]
[355631461,1741414262088,-236.18730077,8.493e-05,2]
[355631462,1741414262101,-619.15992295,8.493e-05,2]
[355631463,1741414262119,-500.0,8.493e-05,2]
[355631464,1741414262131,-3894.31,8.493e-05,2]
[355631465,1741414262149,-3683.74,8.493e-05,2]
[355631466,1741414262162,-500.0,8.493e-05,2]
[355631467,1741414262177,-500.0,8.493e-05,2]
[355631468,1741414262192,-5658.2,8.493e-05,2]
[355631469,1741414262207,-500.0,8.493e-05,2]
[355631470,1741414262221,-500.0,8.493e-05,2]
[355631471,1741414262235,-500.0,8.493e-05,2]
[355631472,1741414262252,-500.0,8.493e-05,2]
[355631473,1741414262266,-1250.82,8.493e-05,2]
[355631474,1741414262280,-500.0,8.493e-05,2]
[355631475,1741414262295,-2802.87,8.493e-05,2]
[355631476,1741414262311,-1248.56,8.493e-05,2]
[355631477,1741414262327,-150.0,8.493e-05,2]
[355631478,1741414262342,-500.0,8.493e-05,2]
[355631479,1741414262357,-500.0,8.493e-05,2]
[355631480,1741414262372,-1209.31,8.493e-05,2]
[355631481,1741414262387,-1749.94,8.493e-05,2]
[355631482,1741414262402,-3194.69,8.493e-05,2]
[355631483,1741414262416,-531.76491455,8.493e-05,2]
[355631484,1741414262431,-1873.28,8.493e-05,2]
[355631485,1741414262446,-3617.4,8.493e-05,2]
[355631486,1741414262465,-1967.32,8.493e-05,2]
[355631487,1741414262479,-1115.86,8.493e-05,2]
[355631488,1741414262495,-1627.0,8.493e-05,2]
[355631489,1741414262509,-904.95,8.493e-05,2]
[355631490,1741414262524,-500.0,8.493e-05,2]
[355631491,1741414262538,-500.0,8.493e-05,2]
[355631492,1741414262553,-2901.56,8.493e-05,2]
[355631493,1741414262568,-14846.79,8.493e-05,2]
[355631494,1741414262584,-3492.23,8.493e-05,2]
[355631495,1741414262599,-500.0,8.493e-05,2]
[355631496,1741414262614,-150.0,8.493e-05,2]
[355631497,1741414262629,-5520.11,8.493e-05,2]
[355631498,1741414262644,-2533.22,8.493e-05,2]
[355631499,1741414262659,-2002.34,8.493e-05,2]
[355631500,1741414262675,-939.4,8.493e-05,2]
[355631501,1741414262691,-6470.24,8.493e-05,2]
[355631502,1741414262706,-374.21933388,8.493e-05,2]
[355631503,1741414262725,-2604.8,8.493e-05,2]
[355631504,1741414262741,-7739.87,8.493e-05,2]
[355631505,1741414262764,-500.0,8.493e-05,2]
[355631506,1741414262781,-6890.8,8.493e-05,2]
[355631507,1741414262800,-1829.8,8.493e-05,2]
[355631508,1741414262816,-500.0,8.493e-05,2]
[355631509,1741414262831,-894.56,8.493e-05,2]
[355631510,1741414262847,-2227.93,8.493e-05,2]
[355631511,1741414262864,-500.0,8.493e-05,2]
[355631512,1741414262878,-2915.63,8.493e-05,2]
[355631513,1741414262895,-5246.76,8.493e-05,2]
[355631514,1741414262911,-500.0,8.493e-05,2]
[355631515,1741414262930,-4042.96,8.493e-05,2]
[355631516,1741414262949,-500.0,8.493e-05,2]
[355631517,1741414262964,-7079.99,8.493e-05,2]
[355631518,1741414262979,-3787.66,8.493e-05,2]
[355631519,1741414262994,-500.0,8.493e-05,2]
[355631520,1741414263010,-4719.53,8.493e-05,2]
[355631521,1741414263025,-759.66,8.493e-05,2]
[355631522,1741414263042,-526.14,8.493e-05,2]
[355631523,1741414263058,-500.0,8.493e-05,2]
[355631524,1741414263073,-3410.95,8.493e-05,2]
[355631525,1741414263089,-500.0,8.493e-05,2]
[355631526,1741414263105,-500.0,8.493e-05,2]
[355631527,1741414263120,-3531.21,8.493e-05,2]
[355631528,1741414263136,-7993.33,8.493e-05,2]
[355631529,1741414263153,-3998.31,8.493e-05,2]
[355631530,1741414263167,-500.0,8.493e-05,2]
[355631531,1741414263183,-502.28144388,8.493e-05,2]
[355631532,1741414263197,-500.0,8.493e-05,2]
[355631533,1741414263212,-1126.05,8.493e-05,2]
[355631534,1741414263228,-500.0,8.493e-05,2]
[355631535,1741414263244,-500.0,8.493e-05,2]
[355631536,1741414263259,-500.0,8.493e-05,2]
[355631537,1741414263274,-500.0,8.493e-05,2]
[355631538,1741414263288,-500.0,8.493e-05,2]
[355631539,1741414263304,-14243.15,8.493e-05,2]
[355631540,1741414263319,-500.0,8.493e-05,2]
[355631541,1741414263335,-2093.81,8.493e-05,2]
[355631542,1741414263351,-1614.81,8.493e-05,2]
[355631543,1741414263367,-500.0,8.493e-05,2]
[355631544,1741414263382,-3455.5,8.493e-05,2]
[355631545,1741414263397,-1472.68,8.493e-05,2]
[355631546,1741414263412,-500.0,8.493e-05,2]
[355631547,1741414263631,-4995.98,8.493e-05,2]
[355631548,1741414263659,-500.0,8.493e-05,2]
[355631549,1741414263669,-3148.86,8.493e-05,2]
[355631550,1741414263679,-1551.96,8.493e-05,2]
[355631551,1741414263688,-500.0,8.493e-05,2]
[355631552,1741414263698,-3146.61,8.493e-05,2]
[355631553,1741414263707,-1369.79,8.493e-05,2]
[355631554,1741414263718,-500.0,8.493e-05,2]
[355631555,1741414263734,-500.0,8.493e-05,2]
[355631556,1741414263744,-5499.01,8.493e-05,2]
[355631557,1741414263753,-500.0,8.493e-05,2]
[355631558,1741414263763,-3009.8,8.493e-05,2]
[355631559,1741414263772,-500.0,8.493e-05,2]
[355631560,1741414263782,-3798.15,8.493e-05,2]
[355631561,1741414263791,-500.0,8.493e-05,2]
[355631562,1741414263801,-1605.17,8.493e-05,2]
[355631563,1741414263812,-952.21,8.493e-05,2]
[355631564,1741414263822,-1618.17,8.493e-05,2]
[355631565,1741414263832,-500.0,8.493e-05,2]
[355631566,1741414263841,-4000.99,8.493e-05,2]
[355631567,1741414263850,-9264.51,8.493e-05,2]
[355631568,1741414263859,-8463.31,8.493e-05,2]
[355631569,1741414263868,-2127.6,8.493e-05,2]
[355631570,1741414263877,-2648.81,8.493e-05,2]
[355631571,1741414263887,-1450.25,8.493e-05,2]
[355631572,1741414263896,-598.37,8.493e-05,2]
[355631573,1741414263906,-25844.66,8.493e-05,2]
[355631574,1741414263915,-509.61,8.493e-05,2]
[355631575,1741414263924,-500.0,8.493e-05,2]
[355631576,1741414263934,-4498.11,8.493e-05,2]
[355631577,1741414263944,-500.0,8.493e-05,2]
[355631578,1741414263953,-5398.16,8.493e-05,2]
[355631579,1741414263963,-1208.88,8.493e-05,2]
[355631580,1741414263972,-3799.62,8.493e-05,2]
[355631581,1741414263982,-1984.26,8.493e-05,2]
[355631582,1741414263991,-1818.21,8.493e-05,2]
[355631583,1741414264002,-500.0,8.493e-05,2]
[355631584,1741414264012,-4967.64,8.493e-05,2]
[355631585,1741414264021,-3277.1,8.493e-05,2]
[355631586,1741414264030,-3035.26,8.493e-05,2]
[355631587,1741414264040,-1874.65,8.493e-05,2]
[355631588,1741414264050,-1467.33,8.493e-05,2]
[355631589,1741414264059,-7850.79,8.493e-05,2]
[355631590,1741414264068,-1486.95,8.493e-05,2]
[355631591,1741414264078,-4012.37,8.493e-05,2]
[355631592,1741414264088,-500.0,8.493e-05,2]
[355631593,1741414264097,-500.0,8.493e-05,2]
[355631594,1741414264107,-1233.5,8.493e-05,2]
[355631595,1741414264116,-18036.87,8.493e-05,2]
[355631596,1741414264126,-4038.67,8.493e-05,2]
[355631597,1741414264135,-2876.54,8.493e-05,2]
[355631598,1741414264145,-1493.96,8.493e-05,2]
[355631599,1741414264154,-500.0,8.493e-05,2]
[355631600,1741414264164,-2395.48,8.493e-05,2]
[355631601,1741414264173,-500.0,8.493e-05,2]
[355631602,1741414264183,-500.0,8.493e-05,2]
[355631603,1741414264192,-500.0,8.493e-05,2]
[355631604,1741414264202,-500.0,8.493e-05,2]
[355631605,1741414264212,-5851.78,8.493e-05,2]
[355631606,1741414264222,-500.0,8.493e-05,2]
[355631607,1741414264231,-793.21,8.493e-05,2]
[355631608,1741414264240,-2111.58,8.493e-05,2]
[355631609,1741414264249,-500.0,8.493e-05,2]
[355631610,1741414264259,-575.23,8.493e-05,2]
[355631611,1741414264269,-2083.64,8.493e-05,2]
[355631612,1741414264278,-3608.2,8.493e-05,2]
[355631613,1741414264287,-13722.98,8.493e-05,2]
[355631614,1741414264296,-1665.59,8.493e-05,2]
[355631615,1741414264306,-500.0,8.493e-05,2]
[355631616,1741414264315,-1688.0,8.493e-05,2]
[355631617,1741414264325,-12120.81,8.493e-05,2]
[355631618,1741414264336,-500.0,8.493e-05,2]
[355631619,1741414264346,-721.51,8.493e-05,2]
[355631620,1741414264355,-2056.19,8.493e-05,2]
[355631621,1741414264364,-551.12,8.493e-05,2]
[355631622,1741414264374,-500.0,8.493e-05,2]
[355631623,1741414264384,-4698.65,8.493e-05,2]
[355631624,1741414264394,-500.0,8.493e-05,2]
[355631625,1741414264403,-1400.68,8.493e-05,2]
[355631626,1741414264413,-500.0,8.493e-05,2]
[355631627,1741414264422,-9078.26,8.493e-05,2]
[355631628,1741414264431,-1535.7,8.493e-05,2]
[355631629,1741414264441,-500.0,8.493e-05,2]
[355631630,1741414264451,-1778.75,8.493e-05,2]
[355631631,1741414264460,-3413.68,8.493e-05,2]
[355631632,1741414264470,-500.0,8.493e-05,2]
[355631633,1741414264479,-1172.66,8.493e-05,2]
[355631634,1741414264489,-1760.1,8.493e-05,2]
[355631635,1741414264498,-54030.76,8.493e-05,2]
[355631636,1741414264508,-500.0,8.493e-05,2]
[355631637,1741414264517,-1803.38,8.493e-05,2]
[355631638,1741414264527,-500.0,8.493e-05,2]
[355631639,1741414264536,-1225.05,8.493e-05,2]
[355631640,1741414264546,-17323.14,8.493e-05,2]
[355631641,1741414264555,-500.0,8.493e-05,2]
[355631642,1741414264564,-12513.42,8.493e-05,2]
[355631643,1741414264573,-755.51,8.493e-05,2]
[355631644,1741414264583,-2590.97,8.493e-05,2]
[355631645,1741414264592,-500.0,8.493e-05,2]
[355631646,1741414264601,-1193.64,8.493e-05,2]
[355631647,1741414264611,-500.0,8.493e-05,2]
[355631648,1741414264620,-2881.01,8.493e-05,2]
[355631649,1741414264629,-701.91,8.493e-05,2]
[355631650,1741414264638,-500.0,8.493e-05,2]
[355631651,1741414264649,-1798.36,8.493e-05,2]
[355631652,1741414264658,-1519.82,8.493e-05,2]
[355631653,1741414264667,-1701.93,8.493e-05,2]
[355631654,1741414264677,-500.0,8.493e-05,2]
[355631655,1741414264686,-500.0,8.493e-05,2]
[355631656,1741414264695,-150.0,8.52e-05,2]
[355631657,1741414264704,-1627.0,8.52e-05,2]
[355631658,1741414264714,-160.05678617,8.52e-05,2]
[355631659,1741414264728,-198.36303384,8.548e-05,2]
[355631660,1741414264738,-1627.0,8.548e-05,2]
[355631661,1741414264747,-1627.0,8.575e-05,2]
[355631662,1741414264756,-1627.0,8.603e-05,2]
[355631663,1741414264766,-1627.0,8.63e-05,2]
[355631664,1741414264775,-426.15751662,8.635e-05,2]
[355631665,1741414264784,-516.30766607,8.636e-05,2]
[355631666,1741414264794,-1627.0,8.657e-05,2]
[355631667,1741414264804,-1627.0,8.685e-05,2]
[355631668,1741414264814,-1627.0,8.712e-05,2]
[355631669,1741414264823,-1627.0,8.74e-05,2]
[355631670,1741414264832,-2420.44,8.766e-05,2]
[355631671,1741414264841,-1627.0,8.767e-05,2]
[355631672,1741414264851,-541.07796418,8.767e-05,2]
[355631673,1741414264859,-1372.55,8.767e-05,2]
[355631674,1741414264869,-200.30634293,8.767e-05,2]
[355631675,1741414264878,-573.96,8.767e-05,2]
[355631676,1741414264887,-500.0,8.767e-05,2]
[355631677,1741414264897,-990.76,8.767e-05,2]
[355631678,1741414264906,-500.0,8.767e-05,2]
[355631679,1741414264915,-1464.46,8.767e-05,2]
[355631680,1741414264924,-981.65,8.767e-05,2]
[355631681,1741414264934,-500.0,8.767e-05,2]
[355631682,1741414264943,-500.0,8.767e-05,2]
[355631683,1741414264952,-864.15,8.767e-05,2]
[355631684,1741414264961,-900.66,8.767e-05,2]
[355631685,1741414264971,-1591.26,8.767e-05,2]
[355631686,1741414264980,-1493.47,8.767e-05,2]
[355631687,1741414264989,-996.39,8.767e-05,2]
[355631688,1741414265000,-1078.36,8.767e-05,2]
[355631689,1741414265009,-500.0,8.767e-05,2]
[355631690,1741414265018,-500.0,8.767e-05,2]
[355631691,1741414265027,-525.58836951,8.767e-05,2]
[355631692,1741414265036,-500.0,8.767e-05,2]
[355631693,1741414265047,-833.6,8.767e-05,2]
[355631694,1741414265057,-839.6,8.767e-05,2]
[355631695,1741414265066,-500.0,8.767e-05,2]
[355631696,1741414265076,-500.0,8.767e-05,2]
[355631697,1741414265085,-500.0,8.767e-05,2]
[355631698,1741414265094,-500.0,8.767e-05,2]
[355631699,1741414265104,-500.0,8.767e-05,2]
[355631700,1741414265112,-500.0,8.767e-05,2]
[355631701,1741414265122,-500.0,8.767e-05,2]
[355631702,1741414265131,-500.0,8.767e-05,2]
[355631703,1741414265142,-500.0,8.767e-05,2]
[355631704,1741414265152,-500.0,8.767e-05,2]
[355631705,1741414265163,-500.0,8.767e-05,2]
[355631706,1741414265174,-500.0,8.767e-05,2]
[355631707,1741414265183,-500.0,8.767e-05,2]
[355631708,1741414265195,-550.61,8.767e-05,2]
[355631709,1741414265204,-1553.23,8.767e-05,2]
[355631710,1741414265215,-500.0,8.767e-05,2]
[355631711,1741414265225,-500.0,8.767e-05,2]
[355631712,1741414265236,-500.0,8.767e-05,2]
[355631713,1741414265247,-856.22,8.767e-05,2]
[355631714,1741414265257,-500.0,8.767e-05,2]
[355631715,1741414265267,-548.06867429,8.767e-05,2]
[355631716,1741414265278,-500.0,8.767e-05,2]
[355631717,1741414265289,-500.0,8.767e-05,2]
[355631718,1741414265299,-500.0,8.767e-05,2]
[355631719,1741414265310,-500.0,8.767e-05,2]
[355631720,1741414265320,-1018.53,8.767e-05,2]
[355631721,1741414265329,-500.0,8.767e-05,2]
[355631722,1741414265339,-500.0,8.767e-05,2]
[355631723,1741414265346,-1391.55,8.767e-05,2]
[355631724,1741414265353,-500.0,8.767e-05,2]
[355631725,1741414265360,-500.0,8.767e-05,2]
[355631726,1741414265368,-500.0,8.767e-05,2]
[355631727,1741414265378,-500.0,8.767e-05,2]
[355631728,1741414265387,-500.0,8.767e-05,2]
[355631729,1741414265397,-216.653981,8.767e-05,2]
[355631730,1741414265407,-500.0,8.767e-05,2]
[355631731,1741414265417,-500.0,8.767e-05,2]
[355631732,1741414265427,-500.0,8.767e-05,2]
[355631733,1741414265436,-500.0,8.767e-05,2]
[355631734,1741414265446,-500.0,8.767e-05,2]
[355631735,1741414265455,-500.0,8.767e-05,2]
[355631736,1741414265465,-500.0,8.767e-05,2]
[355631737,1741414265475,-354.068686,8.767e-05,2]
[355631738,1741414265484,-500.0,8.767e-05,2]
[355631739,1741414265495,-1415.1,8.767e-05,2]
[355631740,1741414265504,-1074.64,8.767e-05,2]
[355631741,1741414265514,-1467.42,8.767e-05,2]
[355631742,1741414265524,-500.0,8.767e-05,2]
[355631743,1741414265533,-500.0,8.767e-05,2]
[355631744,1741414265543,-1168.89,8.767e-05,2]
[355631745,1741414265553,-500.0,8.767e-05,2]
[355631746,1741414265563,-500.0,8.767e-05,2]
[355631747,1741414265573,-500.0,8.767e-05,2]
[355631748,1741414265583,-667.39,8.767e-05,2]
[355631749,1741414265592,-342.04916315,8.767e-05,2]
[355631750,1741414265603,-519.88456033,8.767e-05,2]
[355631751,1741414265613,-500.0,8.767e-05,2]
[355631752,1741414265623,-500.0,8.767e-05,2]
[355631753,1741414265632,-350.0,8.767e-05,2]
[355631754,1741414265642,-1076.49,8.767e-05,2]
[355631755,1741414265654,-1666.06,8.767e-05,2]
[355631756,1741414265665,-678.36,8.767e-05,2]
[355631757,1741414265675,-500.0,8.767e-05,2]
[355631758,1741414265685,-2801.84,8.767e-05,2]
[355631759,1741414265694,-500.0,8.767e-05,2]
[355631760,1741414265704,-500.0,8.767e-05,2]
[355631761,1741414265714,-578.27771064,8.767e-05,2]
[355631762,1741414265726,-2398.19,8.767e-05,2]
[355631763,1741414265735,-500.0,8.767e-05,2]
[355631764,1741414265744,-1257.17,8.767e-05,2]
[355631765,1741414265755,-1124.84,8.767e-05,2]
[355631766,1741414265766,-517.21087294,8.767e-05,2]
[355631767,1741414265775,-1494.7,8.767e-05,2]
[355631768,1741414265784,-1679.02,8.767e-05,2]
[355631769,1741414265794,-536.04,8.767e-05,2]
[355631770,1741414265805,-1620.43,8.767e-05,2]
[355631771,1741414265815,-941.43,8.767e-05,2]
[355631772,1741414265825,-842.48,8.767e-05,2]
[355631773,1741414265835,-500.0,8.767e-05,2]
[355631774,1741414265846,-500.0,8.767e-05,2]
[355631775,1741414265855,-1710.6,8.767e-05,2]
[355631776,1741414265866,-1331.77,8.767e-05,2]
[355631777,1741414265875,-1043.6,8.767e-05,2]
[355631778,1741414265885,-717.47,8.767e-05,2]
[355631779,1741414265895,-500.0,8.767e-05,2]
[355631780,1741414265904,-500.0,8.767e-05,2]
[355631781,1741414265913,-2429.37,8.767e-05,2]
[355631782,1741414265923,-500.0,8.767e-05,2]
[355631783,1741414265932,-1449.26,8.767e-05,2]
[355631784,1741414265941,-500.0,8.767e-05,2]
[355631785,1741414265950,-500.0,8.767e-05,2]
[355631786,1741414265960,-501.0,8.767e-05,2]
[355631787,1741414265970,-500.0,8.767e-05,2]
[355631788,1741414265979,-2102.44,8.767e-05,2]
[355631789,1741414265988,-500.0,8.767e-05,2]
[355631790,1741414265998,-500.0,8.767e-05,2]
[355631791,1741414266008,-2333.22,8.767e-05,2]
[355631792,1741414266017,-500.0,8.767e-05,2]
[355631793,1741414266027,-500.0,8.767e-05,2]
[355631794,1741414266036,-500.0,8.767e-05,2]
[355631795,1741414266045,-500.0,8.767e-05,2]
[355631796,1741414266057,-500.0,8.767e-05,2]
[355631797,1741414266067,-2454.8,8.767e-05,2]
[355631798,1741414266077,-1050.62,8.767e-05,2]
[355631799,1741414266087,-500.0,8.767e-05,2]
[355631800,1741414266099,-1360.65,8.767e-05,2]
[355631801,1741414266109,-1283.45,8.767e-05,2]
[355631802,1741414266267,-1519.79,8.767e-05,2]
[355631803,1741414266277,-1543.84,8.767e-05,2]
[355631804,1741414266286,-500.0,8.767e-05,2]
[355631805,1741414266296,-500.0,8.767e-05,2]
[355631806,1741414266305,-2009.04,8.767e-05,2]
[355631807,1741414266314,-2300.56,8.767e-05,2]
[355631808,1741414266324,-500.0,8.767e-05,2]
[355631809,1741414266333,-500.0,8.767e-05,2]
[355631810,1741414266343,-1663.91,8.767e-05,2]
[355631811,1741414266352,-1272.34,8.767e-05,2]
[355631812,1741414266361,-1026.69,8.767e-05,2]
[355631813,1741414266370,-500.0,8.767e-05,2]
[355631814,1741414266379,-500.0,8.767e-05,2]
[355631815,1741414266389,-560.0,8.767e-05,2]
[355631816,1741414266398,-665.48,8.767e-05,2]
[355631817,1741414266407,-1220.21,8.767e-05,2]
[355631818,1741414266416,-1245.09,8.767e-05,2]
[355631819,1741414266426,-965.83,8.767e-05,2]
[355631820,1741414266435,-1729.38,8.767e-05,2]
[355631821,1741414266445,-368.74066553,8.767e-05,2]
[355631822,1741414266454,-500.0,8.767e-05,2]
[355631823,1741414266463,-1174.55,8.767e-05,2]
[355631824,1741414266473,-843.55,8.767e-05,2]
[355631825,1741414266482,-1130.08,8.767e-05,2]
[355631826,1741414266492,-500.0,8.767e-05,2]
[355631827,1741414266501,-500.0,8.767e-05,2]
[355631828,1741414266510,-500.0,8.767e-05,2]
[355631829,1741414266520,-961.68,8.767e-05,2]
[355631830,1741414266529,-500.0,8.767e-05,2]
[355631831,1741414266540,-1044.38,8.767e-05,2]
[355631832,1741414266550,-2466.34,8.767e-05,2]
[355631833,1741414266559,-2151.46,8.767e-05,2]
[355631834,1741414266568,-1333.37,8.767e-05,2]
[355631835,1741414266578,-1191.23,8.767e-05,2]
[355631836,1741414266588,-1240.21,8.767e-05,2]
[355631837,1741414266598,-500.0,8.767e-05,2]
[355631838,1741414266607,-1022.36,8.767e-05,2]
[355631839,1741414266618,-1665.37,8.767e-05,2]
[355631840,1741414266629,-1576.6,8.767e-05,2]
[355631841,1741414266639,-973.73,8.767e-05,2]
[355631842,1741414266649,-500.0,8.767e-05,2]
[355631843,1741414266659,-500.0,8.767e-05,2]
[355631844,1741414266668,-1132.24,8.767e-05,2]
[355631845,1741414266678,-500.0,8.767e-05,2]
[355631846,1741414266687,-1060.76,8.767e-05,2]
[355631847,1741414266698,-1782.48,8.767e-05,2]
[355631848,1741414266707,-1370.45,8.767e-05,2]
[355631849,1741414266717,-500.0,8.767e-05,2]
[355631850,1741414266733,-500.0,8.767e-05,2]
[355631851,1741414266743,-1259.32,8.767e-05,2]
[355631852,1741414266753,-500.0,8.767e-05,2]
[355631853,1741414266763,-2541.64,8.767e-05,2]
[355631854,1741414266775,-777.41,8.767e-05,2]
[355631855,1741414266785,-1329.76,8.767e-05,2]
[355631856,1741414266796,-1101.59,8.767e-05,2]
[355631857,1741414266811,-983.05,8.767e-05,2]
[355631858,1741414266821,-500.0,8.767e-05,2]
[355631859,1741414266831,-668.67,8.767e-05,2]
[355631860,1741414266840,-500.0,8.767e-05,2]
[355631861,1741414266850,-500.0,8.767e-05,2]
[355631862,1741414266863,-1765.57,8.767e-05,2]
[355631863,1741414266876,-2291.28,8.767e-05,2]
[355631864,1741414266886,-1009.19,8.767e-05,2]
[355631865,1741414266899,-500.0,8.767e-05,2]
[355631866,1741414266908,-677.0,8.767e-05,2]
[355631867,1741414266919,-500.0,8.767e-05,2]
[355631868,1741414266930,-2477.16,8.767e-05,2]
[355631869,1741414266942,-1404.42,8.767e-05,2]
[355631870,1741414266953,-814.79,8.767e-05,2]
[355631871,1741414266963,-1300.81,8.767e-05,2]
[355631872,1741414266973,-500.0,8.767e-05,2]
[355631873,1741414266983,-500.0,8.767e-05,2]
[355631874,1741414266992,-500.0,8.767e-05,2]
[355631875,1741414267003,-1307.72,8.767e-05,2]
[355631876,1741414267012,-907.34,8.767e-05,2]
[355631877,1741414267021,-1878.26,8.767e-05,2]
[355631878,1741414267031,-616.73,8.767e-05,2]
[355631879,1741414267040,-500.0,8.767e-05,2]
[355631880,1741414267050,-2048.8,8.767e-05,2]
[355631881,1741414267060,-500.0,8.767e-05,2]
[355631882,1741414267080,-500.0,8.767e-05,2]
[355631883,1741414267101,-500.0,8.767e-05,2]
[355631884,1741414267122,-1719.6,8.767e-05,2]
[355631885,1741414267136,-500.0,8.767e-05,2]
[355631886,1741414267145,-1977.78,8.767e-05,2]
[355631887,1741414267154,-1762.89,8.767e-05,2]
[355631888,1741414267164,-849.49,8.767e-05,2]
[355631889,1741414267173,-500.0,8.767e-05,2]
[355631890,1741414267183,-557.57,8.767e-05,2]
[355631891,1741414267192,-500.0,8.767e-05,2]
[355631892,1741414267202,-500.0,8.767e-05,2]
[355631893,1741414267211,-500.0,8.767e-05,2]
[355631894,1741414267221,-1263.39,8.767e-05,2]
[355631895,1741414267230,-500.0,8.767e-05,2]
[355631896,1741414267239,-500.0,8.767e-05,2]
[355631897,1741414267248,-1584.36,8.767e-05,2]
[355631898,1741414267257,-811.94,8.767e-05,2]
[355631899,1741414267267,-1487.59,8.767e-05,2]
[355631900,1741414267277,-507.53,8.767e-05,2]
[355631901,1741414267286,-500.0,8.767e-05,2]
[355631902,1741414267295,-500.0,8.767e-05,2]
[355631903,1741414267305,-500.0,8.767e-05,2]
[355631904,1741414267314,-500.0,8.767e-05,2]
[355631905,1741414267323,-832.98,8.767e-05,2]
[355631906,1741414267334,-1220.41,8.767e-05,2]
[355631907,1741414267343,-500.0,8.767e-05,2]
[355631908,1741414267354,-500.0,8.767e-05,2]
[355631909,1741414267364,-500.0,8.767e-05,2]
[355631910,1741414267373,-500.0,8.767e-05,2]
[355631911,1741414267383,-2386.34,8.767e-05,2]
[355631912,1741414267392,-500.0,8.767e-05,2]
[355631913,1741414267403,-500.0,8.767e-05,2]
[355631914,1741414267412,-500.0,8.767e-05,2]
[355631915,1741414267421,-500.0,8.767e-05,2]
[355631916,1741414267431,-642.99,8.767e-05,2]
[355631917,1741414267441,-500.0,8.767e-05,2]
[355631918,1741414267451,-1598.77,8.767e-05,2]
[355631919,1741414267460,-500.0,8.767e-05,2]
[355631920,1741414267470,-500.0,8.767e-05,2]
[355631921,1741414267480,-1159.55,8.767e-05,2]
[355631922,1741414267489,-648.04611228,8.767e-05,2]
[355631923,1741414267499,-2772.82,8.767e-05,2]
[355631924,1741414267509,-500.0,8.767e-05,2]
[355631925,1741414267518,-500.0,8.767e-05,2]
[355631926,1741414267528,-500.0,8.767e-05,2]
[355631927,1741414267538,-500.0,8.767e-05,2]
[355631928,1741414267549,-500.0,8.767e-05,2]
[355631929,1741414267559,-513.6,8.767e-05,2]
[355631930,1741414267569,-2172.71,8.767e-05,2]
[355631931,1741414267579,-1268.96,8.767e-05,2]
[355631932,1741414267589,-500.0,8.767e-05,2]
[355631933,1741414267599,-674.93,8.767e-05,2]
[355631934,1741414267609,-500.0,8.767e-05,2]
[355631935,1741414267619,-1215.2,8.767e-05,2]
[355631936,1741414267629,-500.0,8.767e-05,2]
[355631937,1741414267638,-500.0,8.767e-05,2]
[355631938,1741414267649,-3496.89,8.767e-05,2]
[355631939,1741414267659,-500.0,8.767e-05,2]
[355631940,1741414267669,-500.0,8.767e-05,2]
[355631941,1741414267679,-2385.26,8.767e-05,2]
[355631942,1741414267688,-822.37,8.767e-05,2]